bitfinex-derivatives/quotes_BTCF0:USTF0_20250810
["timestamp","ask_amount","ask_price","bid_price","bid_amount"]
[1754794860832,0.48734,117460.0,117450.0,0.8675694]
[1754794861018,0.83228618,117460.0,117450.0,0.8675694]
[1754794862027,0.83228618,117460.0,117450.0,0.0851294]
[1754794862220,1.00253248,117460.0,117450.0,0.0851294]
[1754794862420,0.12154,117450.0,117440.0,1.44194345]
[1754794862631,0.12154,117450.0,117440.0,2.22380345]
[1754794862632,0.82728618,117450.0,117440.0,2.22380345]
[1754794863522,0.82828618,117450.0,117440.0,2.22380345]
[1754794863923,0.82828618,117450.0,117440.0,1.04592345]
[1754794864332,0.83028618,117450.0,117440.0,1.04592345]
[1754794865023,0.1043,117440.0,117430.0,0.0605496]
[1754794865229,1.34113876,117440.0,117430.0,0.8671038]
[1754794865528,0.99619258,117440.0,117430.0,0.8671038]
[1754794865930,0.99619258,117440.0,117430.0,0.78196]
[1754794866130,1.34113876,117440.0,117420.0,0.2555494]
[1754794866432,0.90895008,117430.0,117420.0,0.2555494]
[1754794866633,0.90895008,117430.0,117420.0,1.0382494]
[1754794867824,0.90895008,117430.0,117420.0,0.1702996]
[1754794868130,0.1323114,117420.0,117410.0,0.1704162]
[1754794868331,0.90895758,117420.0,117410.0,0.0851581]
[1754794868635,0.90895758,117420.0,117410.0,0.8695181]
[1754794869923,0.90895758,117420.0,117410.0,0.8715181]
[1754794870136,0.5640114,117420.0,117410.0,0.8715181]
[1754794870435,0.90895758,117420.0,117410.0,0.8715181]
[1754794871035,0.90895758,117420.0,117410.0,0.8735181]
[1754794871232,0.82380618,117420.0,117410.0,0.9443481]
[1754794871632,0.82380618,117420.0,117410.0,0.9654481]
[1754794871831,0.47886,117420.0,117410.0,0.9654481]
[1754794872028,0.82380618,117420.0,117410.0,0.9654481]
[1754794872336,0.90895738,117420.0,117410.0,0.9054881]
[1754794872532,0.90895738,117420.0,117410.0,0.1211281]
[1754794872840,0.90895738,117420.0,117410.0,0.9442681]
[1754794873036,0.82380618,117420.0,117410.0,0.1599881]
[1754794873340,0.90895738,117420.0,117410.0,0.9443881]
[1754794875329,0.90895738,117420.0,117410.0,0.1599881]
[1754794875533,0.90895738,117420.0,117410.0,0.0893581]
[1754794875736,0.90895738,117420.0,117410.0,0.8738381]
[1754794875933,0.90895738,117420.0,117410.0,0.1211281]
[1754794876231,0.90895738,117420.0,117410.0,0.0042]
[1754794876438,0.90895738,117420.0,117410.0,0.78856]
[1754794876936,0.90895738,117420.0,117410.0,0.8737184]
[1754794877737,0.90895738,117420.0,117410.0,0.0042]
[1754794877933,1.07929338,117420.0,117410.0,0.7888]
[1754794878939,1.07929338,117420.0,117410.0,0.8739584]
[1754794880638,0.90895738,117420.0,117410.0,0.0893584]
[1754794881240,0.5640112,117420.0,117410.0,0.8738784]
[1754794881444,0.90895738,117420.0,117410.0,0.8739184]
[1754794881743,0.90895738,117420.0,117410.0,0.0893584]
[1754794881944,0.90895738,117420.0,117410.0,0.8741984]
[1754794882344,0.90895738,117420.0,117410.0,0.0893584]
[1754794884737,0.90895738,117420.0,117410.0,0.0042]
[1754794885848,0.90895738,117420.0,117410.0,0.0893584]
[1754794886051,0.90895738,117420.0,117410.0,0.0042]
[1754794887243,0.5640112,117420.0,117410.0,0.0042]
[1754794887445,0.90895738,117420.0,117410.0,0.0042]
[1754794887947,0.5640112,117420.0,117410.0,0.0893583]
[1754794888147,0.90895738,117420.0,117410.0,0.0893583]
[1754794889443,0.5640112,117420.0,117410.0,0.0893583]
[1754794889845,0.90895738,117420.0,117410.0,0.0893583]
[1754794890246,0.47886,117420.0,117410.0,0.1599883]
[1754794890443,0.47886,117420.0,117410.0,0.1810883]
[1754794890652,0.82380618,117420.0,117410.0,0.1810883]
[1754794891655,0.47886,117420.0,117410.0,0.1810883]
[1754794892051,0.90895718,117420.0,117410.0,0.0042]
[1754794892953,0.90895718,117420.0,117410.0,0.1211283]
[1754794893751,0.82380618,117420.0,117410.0,0.1599883]
[1754794894856,0.90895718,117420.0,117410.0,0.0042]
[1754794896058,0.564011,117420.0,117410.0,0.0042]
[1754794896357,0.90895718,117420.0,117410.0,0.0042]
[1754794896754,0.564011,117420.0,117410.0,0.0042]
[1754794896954,0.90895718,117420.0,117410.0,0.0042]
[1754794898451,0.90895718,117420.0,117410.0,0.0646496]
[1754794898856,1.70291718,117420.0,117410.0,0.0646496]
[1754794899159,1.70291718,117420.0,117410.0,0.0042]
[1754794899758,0.2031383,117410.0,117400.0,0.12926491]
[1754794899960,0.2031455,117400.0,117390.0,0.0605496]
[1754794900174,0.2031528,117390.0,117380.0,0.1457282]
[1754794900357,0.5639528,117390.0,117380.0,0.0851786]
[1754794900761,0.5639528,117390.0,117380.0,0.1456282]
[1754794901059,0.90889898,117390.0,117380.0,0.1456282]
[1754794901464,0.90889898,117390.0,117380.0,0.0851786]
[1754794901962,0.5639528,117390.0,117380.0,0.1177786]
[1754794902263,0.82372618,117390.0,117380.0,0.1553786]
[1754794902454,0.82372618,117390.0,117380.0,0.1801786]
[1754794903155,0.47978,117390.0,117380.0,0.1801786]
[1754794903662,0.82472618,117390.0,117380.0,0.1801786]
[1754794903862,0.11798,117380.0,117370.0,0.325852]
[1754794904156,0.82372618,117380.0,117370.0,1.159232]
[1754794904966,0.82372618,117380.0,117370.0,1.160232]
[1754794905665,0.47878,117380.0,117370.0,1.160232]
[1754794905964,0.82372618,117380.0,117370.0,1.160232]
[1754794906166,0.47878,117380.0,117370.0,1.160232]
[1754794906865,0.47878,117380.0,117370.0,1.161232]
[1754794907058,0.82372618,117380.0,117370.0,1.161232]
[1754794907861,0.47878,117380.0,117370.0,1.2216816]
[1754794908068,0.82372618,117380.0,117370.0,1.2216816]
[1754794909158,0.47878,117380.0,117370.0,1.2216816]
[1754794909463,0.47878,117380.0,117370.0,1.162232]
[1754794909867,0.82372618,117380.0,117370.0,1.162232]
[1754794910068,0.47878,117380.0,117370.0,1.162232]
[1754794910268,0.82372618,117380.0,117370.0,1.162232]
[1754794910768,0.47878,117380.0,117370.0,1.162232]
[1754794911170,0.82372618,117380.0,117370.0,1.162232]
[1754794911465,0.37067,117380.0,117370.0,1.50717818]
[1754794911665,0.77681618,117390.0,117380.0,0.12278]
[1754794911666,0.11808,117390.0,117380.0,0.12278]
[1754794911866,0.70584618,117400.0,117380.0,0.18018]
[1754794912073,0.47888,117400.0,117390.0,0.9917728]
[1754794912265,0.47878,117400.0,117390.0,0.9917728]
[1754794913168,0.82372618,117400.0,117390.0,0.9917728]
[1754794913561,0.82572618,117400.0,117390.0,0.9917728]
[1754794913959,0.82372618,117400.0,117390.0,0.9917728]
[1754794914161,0.82572618,117400.0,117390.0,0.9917728]
[1754794914364,0.48078,117400.0,117390.0,0.9917728]
[1754794914564,0.82472618,117400.0,117390.0,0.9917728]
[1754794914970,0.82472618,117400.0,117390.0,1.0522224]
[1754794915361,0.82372618,117400.0,117390.0,1.0522224]
[1754794915565,0.90889168,117400.0,117390.0,1.0522224]
[1754794915961,0.90889168,117400.0,117390.0,1.0274224]
[1754794916374,0.82372618,117400.0,117390.0,1.0274224]
[1754794917374,0.90889168,117400.0,117390.0,1.0274224]
[1754794917768,0.90889168,117400.0,117390.0,0.9669728]
[1754794918473,0.90889168,117400.0,117390.0,0.1553728]
[1754794918675,0.90889168,117400.0,117390.0,0.9671728]
[1754794919569,0.82372618,117400.0,117390.0,0.9671728]
[1754794919966,0.90889168,117400.0,117390.0,0.9671728]
[1754794920667,0.82372618,117400.0,117390.0,0.9671728]
[1754794921368,0.90889168,117400.0,117390.0,0.8969728]
[1754794921581,0.2031528,117390.0,117380.0,0.170456]
[1754794921773,1.00828828,117390.0,117370.0,0.3408424]
[1754794922068,0.75275618,117380.0,117370.0,0.3258568]
[1754794922263,0.90890618,117380.0,117370.0,0.3257568]
[1754794922465,0.90890618,117380.0,117370.0,0.0604496]
[1754794922769,0.2031673,117370.0,117360.0,0.9575841]
[1754794922970,0.90891348,117370.0,117360.0,0.9574841]
[1754794923367,1.25385966,117370.0,117360.0,0.0604496]
[1754794923563,1.25385966,117370.0,117350.0,0.0605496]
[1754794923564,0.2031745,117360.0,117350.0,0.0605496]
[1754794923871,0.2031745,117360.0,117340.0,0.23763373]
[1754794923872,0.2031818,117350.0,117340.0,0.21297743]
[1754794924075,0.90892798,117350.0,117340.0,1.02447743]
[1754794924273,0.90892798,117350.0,117340.0,0.96402783]
[1754794925272,0.90892798,117350.0,117340.0,0.0862091]
[1754794925474,0.90892798,117350.0,117340.0,0.8974491]
[1754794926176,0.90892798,117350.0,117340.0,0.0862091]
[1754794926377,0.90892798,117350.0,117340.0,0.8972491]
[1754794927574,0.90892798,117350.0,117340.0,0.8982491]
[1754794927778,0.90892798,117350.0,117340.0,0.0872091]
[1754794929874,1.71988798,117350.0,117340.0,0.0872091]
[1754794933787,0.90892798,117350.0,117340.0,0.0872091]
[1754794937387,0.5639818,117350.0,117340.0,0.0872091]
[1754794937688,0.5639818,117350.0,117340.0,0.1825591]
[1754794937689,0.90892798,117350.0,117340.0,0.1825591]
[1754794938187,0.44708,117350.0,117340.0,0.9713491]
[1754794938395,0.76490618,117360.0,117340.0,1.1835692]
[1754794938691,0.82576618,117360.0,117350.0,0.1805518]
[1754794938887,0.82566618,117360.0,117350.0,0.1805518]
[1754794939786,0.48072,117360.0,117350.0,0.1805518]
[1754794939988,0.38406,117360.0,117350.0,0.1805518]
[1754794940183,0.3608,117360.0,117350.0,0.1805518]
[1754794940387,0.38406,117360.0,117350.0,0.1805518]
[1754794940591,0.75312618,117360.0,117350.0,0.1805518]
[1754794940896,0.82566618,117360.0,117350.0,0.1815518]
[1754794942290,0.82566618,117360.0,117350.0,0.1825518]
[1754794943499,0.82566618,117360.0,117350.0,0.1835518]
[1754794943794,0.11992,117360.0,117350.0,0.1835518]
[1754794943993,0.46486618,117360.0,117350.0,0.1835518]
[1754794944895,0.11992,117360.0,117350.0,0.1835518]
[1754794945295,0.46486618,117360.0,117350.0,0.4525518]
[1754794945791,0.11992,117360.0,117350.0,0.4525518]
[1754794945993,0.46486618,117360.0,117350.0,0.4525518]
[1754794946598,0.11992,117360.0,117350.0,0.4525518]
[1754794946791,0.46486618,117360.0,117350.0,0.4525518]
[1754794946992,0.48072,117360.0,117350.0,0.4525518]
[1754794947192,0.82566618,117360.0,117350.0,0.4525518]
[1754794947591,0.48072,117360.0,117350.0,0.4525518]
[1754794947791,0.82566618,117360.0,117350.0,0.4525518]
[1754794948494,0.82566618,117360.0,117350.0,0.3962418]
[1754794948698,0.82566618,117360.0,117350.0,0.4278618]
[1754794949899,0.48072,117360.0,117350.0,0.4278618]
[1754794950101,0.82566618,117360.0,117350.0,0.3572018]
[1754794950400,0.91086078,117360.0,117350.0,0.3572018]
[1754794950794,0.91086078,117360.0,117350.0,0.0882018]
[1754794951299,0.91086078,117360.0,117350.0,0.0872018]
[1754794951487,0.91086078,117360.0,117350.0,0.0862018]
[1754794953802,0.48072,117360.0,117350.0,0.0862018]
[1754794953992,0.82566618,117360.0,117350.0,0.1178218]
[1754794954794,0.48072,117360.0,117350.0,0.1178218]
[1754794954994,0.82566618,117360.0,117350.0,0.1178218]
[1754794955202,0.48072,117360.0,117350.0,0.1178218]
[1754794955501,0.82566618,117360.0,117350.0,0.1178218]
[1754794957800,0.48072,117360.0,117350.0,0.1569518]
[1754794958003,0.48072,117360.0,117350.0,0.2423614]
[1754794958202,0.82566618,117360.0,117350.0,0.2423614]
[1754794958902,0.46486618,117360.0,117350.0,0.1819118]
[1754794959096,0.11992,117360.0,117350.0,0.1819118]
[1754794959496,0.46486618,117360.0,117350.0,0.1819118]
[1754794959899,0.11992,117360.0,117350.0,0.1819118]
[1754794960200,0.46486618,117360.0,117350.0,0.1819118]
[1754794961104,0.11992,117360.0,117350.0,0.1819118]
[1754794961703,0.11992,117360.0,117350.0,0.52685798]
[1754794962101,0.11992,117360.0,117350.0,0.1819118]
[1754794963001,0.11992,117360.0,117350.0,0.4509118]
[1754794964201,0.46486618,117360.0,117350.0,0.4509118]
[1754794964597,0.46486618,117360.0,117350.0,0.52650937]
[1754794964808,0.11992,117360.0,117350.0,0.52650937]
[1754794965004,0.46486618,117360.0,117350.0,0.52650937]
[1754794966797,0.11992,117360.0,117350.0,0.52650937]
[1754794967305,0.46486618,117360.0,117350.0,0.52650937]
[1754794967898,0.11992,117360.0,117350.0,0.52650937]
[1754794968101,0.46486618,117360.0,117350.0,0.52650937]
[1754794969010,0.11992,117360.0,117350.0,0.52650937]
[1754794969998,0.11992,117360.0,117350.0,0.4509118]
[1754794970605,0.46486618,117360.0,117350.0,0.4509118]
[1754794970908,0.11992,117360.0,117350.0,0.4509118]
[1754794973602,0.11992,117360.0,117350.0,0.52650937]
[1754794973803,0.3611,117370.0,117360.0,0.1187346]
[1754794974000,0.11952,117380.0,117370.0,0.1825573]
[1754794974314,0.11922,117380.0,117370.0,0.25836621]
[1754794975309,0.12222,117380.0,117370.0,0.25836621]
[1754794975907,0.11922,117380.0,117370.0,0.24416462]
[1754794977309,0.11922,117380.0,117370.0,0.24616462]
[1754794977815,0.11922,117380.0,117370.0,0.1855573]
[1754794978812,0.82496618,117380.0,117370.0,0.1855573]
[1754794979211,0.82496618,117380.0,117370.0,0.1605973]
[1754794979604,0.48002,117380.0,117370.0,0.1605973]
[1754794980007,0.82496618,117380.0,117370.0,0.1605973]
[1754794980816,0.48002,117380.0,117370.0,0.1605973]
[1754794981018,0.82496618,117380.0,117370.0,0.1605973]
[1754794981616,0.48002,117380.0,117370.0,0.1605973]
[1754794981919,0.82496618,117380.0,117370.0,0.1605973]
[1754794982508,0.82496618,117380.0,117370.0,0.0881873]
[1754794982712,0.91014628,117380.0,117370.0,0.0881873]
[1754794983516,0.82496618,117380.0,117370.0,0.0881873]
[1754794983723,0.82496618,117380.0,117370.0,0.1197273]
[1754794983921,0.82496618,117380.0,117370.0,0.1585973]
[1754794984416,0.82696618,117380.0,117370.0,0.1575973]
[1754794985018,0.82696618,117380.0,117370.0,0.1585973]
[1754794985215,0.82496618,117380.0,117370.0,0.1585973]
[1754794985519,0.48002,117380.0,117370.0,0.1585973]
[1754794985820,0.82496618,117380.0,117370.0,0.1585973]
[1754794986217,0.48002,117380.0,117370.0,0.1585973]
[1754794986421,0.82496618,117380.0,117370.0,0.1585973]
[1754794986723,0.48002,117380.0,117370.0,0.1836273]
[1754794987014,0.48002,117380.0,117370.0,0.1250573]
[1754794987218,0.82496618,117380.0,117370.0,0.0861873]
[1754794987424,0.82496618,117380.0,117370.0,0.1211173]
[1754794987923,0.48002,117380.0,117370.0,0.19722462]
[1754794988220,0.82496618,117380.0,117370.0,0.21967462]
[1754794988614,0.48002,117380.0,117370.0,0.21967462]
[1754794988815,0.82496618,117380.0,117370.0,0.2604042]
[1754794989015,0.48002,117380.0,117370.0,0.2604042]
[1754794989324,0.11922,117380.0,117370.0,0.60535038]
[1754794989717,0.11922,117380.0,117370.0,0.54474306]
[1754794989916,0.11922,117380.0,117370.0,0.90554306]
[1754794990925,0.11922,117380.0,117370.0,0.56059688]
[1754794991116,0.11922,117380.0,117370.0,0.90554306]
[1754794991318,0.11922,117380.0,117370.0,0.19979688]
[1754794991518,0.46416618,117380.0,117370.0,0.19979688]
[1754794991717,0.11922,117380.0,117370.0,0.27560579]
[1754794991914,0.46416618,117380.0,117370.0,0.27560579]
[1754794992417,0.46416618,117380.0,117370.0,0.25196579]
[1754794992724,0.82496618,117380.0,117370.0,0.25196579]
[1754794992919,0.46416618,117380.0,117370.0,0.25196579]
[1754794993224,0.82496618,117380.0,117370.0,0.25196579]
[1754794993913,0.82496618,117380.0,117370.0,0.17908579]
[1754794994113,0.82496618,117380.0,117370.0,0.10327688]
[1754794994627,0.11922,117380.0,117370.0,0.10327688]
[1754794994926,0.46416618,117380.0,117370.0,0.10327688]
[1754794995217,0.48002,117380.0,117370.0,0.10327688]
[1754794995424,0.46416618,117380.0,117370.0,0.17615688]
[1754794995722,0.11922,117380.0,117370.0,0.44515688]
[1754794995923,0.46416618,117380.0,117370.0,0.44515688]
[1754794998427,0.11922,117380.0,117370.0,0.52096579]
[1754794998724,0.46416618,117380.0,117370.0,0.48603579]
[1754794999322,0.46416618,117380.0,117370.0,0.52096579]
[1754794999521,0.46416618,117380.0,117370.0,0.50577874]
[1754795001733,0.48035,117390.0,117380.0,0.1817002]
[1754795002026,0.48005,117390.0,117380.0,1.42493529]
[1754795002630,0.3608,117390.0,117380.0,1.42493529]
[1754795002820,0.45684,117390.0,117380.0,1.42493529]
[1754795003220,0.45884,117390.0,117380.0,1.42493529]
[1754795003622,0.09804,117390.0,117380.0,1.42493529]
[1754795003928,0.02694,117390.0,117380.0,1.42693529]
[1754795004226,0.45714,117400.0,117390.0,0.181693]
[1754795004426,0.45684,117400.0,117390.0,0.52663918]
[1754795004729,0.04959,117400.0,117390.0,0.96324809]
[1754795004926,0.11955,117410.0,117400.0,0.1816858]
[1754795005124,0.08675,117410.0,117400.0,1.70923198]
[1754795005326,0.03421,117410.0,117400.0,1.70923198]
[1754795005522,0.03421,117410.0,117400.0,1.78504089]
[1754795006235,0.11925,117410.0,117400.0,1.78504089]
[1754795006923,0.12125,117410.0,117400.0,1.78504089]
[1754795007524,0.11925,117410.0,117400.0,1.78604089]
[1754795008027,0.11925,117410.0,117400.0,1.71023198]
[1754795008232,0.11925,117410.0,117400.0,1.77067154]
[1754795008531,0.11925,117410.0,117400.0,1.78604089]
[1754795008730,0.08675,117410.0,117400.0,1.79438663]
[1754795009029,0.08675,117410.0,117400.0,1.79638663]
[1754795009329,0.08675,117410.0,117400.0,1.72057772]
[1754795009529,0.11925,117410.0,117400.0,1.72057772]
[1754795009930,0.11925,117410.0,117400.0,1.78098363]
[1754795010820,0.08675,117410.0,117400.0,1.78098363]
[1754795011024,0.06354,117410.0,117400.0,1.78098363]
[1754795011630,0.03421,117410.0,117400.0,1.78098363]
[1754795012036,0.03421,117410.0,117400.0,1.43603745]
[1754795012235,0.03421,117410.0,117400.0,1.78098363]
[1754795012435,0.04816,117410.0,117400.0,1.43603745]
[1754795012636,0.11925,117410.0,117400.0,1.43603745]
[1754795013134,0.11925,117410.0,117400.0,1.78098363]
[1754795015037,0.04816,117410.0,117400.0,1.78098363]
[1754795015337,0.03421,117410.0,117400.0,1.78098363]
[1754795016145,0.03421,117410.0,117400.0,1.72057772]
[1754795018039,0.03421,117410.0,117400.0,1.78098363]
[1754795019238,0.08538,117420.0,117410.0,0.1805785]
[1754795019440,0.11745,117420.0,117410.0,0.52572468]
[1754795019834,0.0336,117420.0,117410.0,0.52572468]
[1754795020139,0.3947,117430.0,117420.0,0.1805712]
[1754795020340,0.47825,117430.0,117420.0,1.0018512]
[1754795022440,0.47825,117430.0,117420.0,1.0028512]
[1754795022636,0.48025,117430.0,117420.0,1.0028512]
[1754795023233,0.47825,117430.0,117420.0,1.0028512]
[1754795024239,0.82319618,117430.0,117420.0,1.0028512]
[1754795024437,0.47825,117430.0,117420.0,1.0028512]
[1754795025241,0.47825,117430.0,117420.0,1.2718512]
[1754795025846,0.11745,117430.0,117420.0,1.2718512]
[1754795027845,0.47825,117430.0,117420.0,1.2718512]
[1754795028041,0.82319618,117430.0,117420.0,1.2718512]
[1754795028557,0.0003,117440.0,117430.0,0.180564]
[1754795028750,0.43115,117450.0,117440.0,0.1805567]
[1754795028751,0.82349618,117450.0,117440.0,0.1805567]
[1754795028944,0.82319618,117450.0,117440.0,1.0010767]
[1754795029850,0.47825,117450.0,117440.0,1.0010767]
[1754795030045,0.48125,117450.0,117440.0,1.0010767]
[1754795030948,0.48125,117450.0,117440.0,1.01852829]
[1754795031453,0.82619618,117450.0,117440.0,1.01852829]
[1754795032040,0.48125,117450.0,117440.0,1.01852829]
[1754795032245,0.48225,117450.0,117440.0,1.01852829]
[1754795032551,0.82719618,117450.0,117440.0,1.01852829]
[1754795033453,0.48225,117450.0,117440.0,1.36347447]
[1754795034548,0.48225,117450.0,117440.0,1.01852829]
[1754795037052,0.48225,117450.0,117440.0,0.99473829]
[1754795037357,0.48225,117450.0,117440.0,1.01852829]
[1754795037655,0.48225,117450.0,117440.0,1.36347447]
[1754795038245,0.3984,117450.0,117440.0,1.36347447]
[1754795039158,0.41257,117450.0,117440.0,1.36347447]
[1754795039350,0.42881,117450.0,117440.0,1.36347447]
[1754795039552,0.48225,117450.0,117440.0,1.36347447]
[1754795042956,0.48225,117450.0,117440.0,1.63247447]
[1754795043342,0.48225,117450.0,117440.0,1.28752829]
[1754795045447,0.3648,117450.0,117440.0,1.63247447]
[1754795045653,0.38797,117450.0,117440.0,1.63247447]
[1754795046361,0.38797,117450.0,117440.0,1.28752829]
[1754795046552,0.38797,117450.0,117440.0,1.63247447]
[1754795047458,0.38797,117450.0,117440.0,1.69288038]
[1754795048353,0.39747,117450.0,117440.0,1.69288038]
[1754795048558,0.46331,117450.0,117440.0,1.69288038]
[1754795048960,0.48506,117450.0,117440.0,1.69288038]
[1754795049458,0.48506,117450.0,117440.0,1.3479342]
[1754795049660,0.48506,117450.0,117440.0,1.69288038]
[1754795050060,0.48506,117450.0,117440.0,1.3479342]
[1754795050261,0.48506,117450.0,117440.0,1.69288038]
[1754795050662,0.48506,117450.0,117440.0,1.3479342]
[1754795050859,0.3648,117450.0,117440.0,1.3479342]
[1754795051060,0.3648,117450.0,117440.0,1.69288038]
[1754795051260,0.38797,117450.0,117440.0,1.69288038]
[1754795051466,0.39747,117450.0,117440.0,1.69288038]
[1754795051664,0.41226,117450.0,117440.0,1.69288038]
[1754795051959,0.91513568,117450.0,117440.0,0.9013367]
[1754795052164,0.91513568,117450.0,117440.0,0.0853367]
[1754795052865,0.83000618,117450.0,117440.0,0.0853367]
[1754795053164,0.91513698,117450.0,117440.0,0.0853367]
[1754795056268,0.5701908,117450.0,117440.0,0.0853367]
[1754795056469,0.91513698,117450.0,117440.0,0.0853367]
[1754795057368,1.90093268,117450.0,117440.0,0.0701385]
[1754795057570,1.98607118,117450.0,117430.0,0.31593371]
[1754795057770,0.82600618,117440.0,117430.0,0.42113371]
[1754795058063,0.48106,117440.0,117430.0,0.42809371]
[1754795058465,0.48106,117440.0,117430.0,0.77303989]
[1754795058466,0.0478,117440.0,117430.0,0.77303989]
[1754795058665,0.48516,117450.0,117440.0,0.1973984]
[1754795058870,0.48506,117450.0,117440.0,1.41760623]
[1754795059868,0.48206,117450.0,117440.0,1.41760623]
[1754795060169,0.48506,117450.0,117440.0,1.41760623]
[1754795060769,0.48506,117450.0,117440.0,1.35706458]
[1754795061668,0.48506,117450.0,117440.0,1.0121184]
[1754795063071,0.4126,117450.0,117440.0,1.02909054]
[1754795063370,0.48506,117450.0,117440.0,1.02909054]
[1754795063572,0.48506,117450.0,117440.0,1.29809054]
[1754795064967,0.48506,117450.0,117440.0,1.64303672]
[1754795065671,0.48506,117450.0,117440.0,1.29809054]
[1754795068076,0.004,117450.0,117440.0,1.9879829]
[1754795068275,0.0001,117460.0,117440.0,2.42459181]
[1754795068468,0.0001,117460.0,117450.0,0.61795586]
[1754795068668,0.38519,117470.0,117460.0,0.1973839]
[1754795068869,0.3608,117470.0,117460.0,1.62261008]
[1754795069278,0.3703,117470.0,117460.0,1.62261008]
[1754795069578,0.48106,117470.0,117460.0,1.62261008]
[1754795069771,0.48106,117470.0,117460.0,1.2776639]
[1754795069972,0.48106,117470.0,117460.0,1.35328238]
[1754795070370,0.48106,117470.0,117460.0,1.2776639]
[1754795070573,0.48406,117470.0,117460.0,1.2776639]
[1754795070871,0.48806,117470.0,117460.0,1.2776639]
[1754795072371,0.3773,117470.0,117460.0,1.62261008]
[1754795072770,0.48806,117470.0,117460.0,1.2776639]
[1754795072972,0.48806,117470.0,117460.0,1.28634703]
[1754795073873,0.48806,117470.0,117460.0,1.63129321]
[1754795074073,0.48806,117470.0,117460.0,1.70057259]
[1754795074780,0.43039,117470.0,117460.0,1.70057259]
[1754795074969,0.43039,117470.0,117460.0,1.35562641]
[1754795075175,0.48795,117470.0,117460.0,1.70057259]
[1754795075671,0.48795,117470.0,117460.0,1.35562641]
[1754795076674,0.48795,117470.0,117460.0,1.70057259]
[1754795076879,0.48795,117470.0,117460.0,1.35582641]
[1754795077286,0.48795,117470.0,117460.0,1.70077259]
[1754795077576,0.0004,117480.0,117470.0,0.1957668]
[1754795077782,0.0093,117480.0,117470.0,0.54091298]
[1754795078082,0.09675,117480.0,117470.0,0.54091298]
[1754795078284,0.11784,117480.0,117470.0,0.1959668]
[1754795078578,0.11784,117480.0,117470.0,0.54091298]
[1754795078972,0.12084,117480.0,117470.0,0.55799306]
[1754795079982,0.48064,117480.0,117470.0,0.55799306]
[1754795080169,0.48164,117480.0,117470.0,0.55799306]
[1754795080576,0.47964,117480.0,117470.0,0.55799306]
[1754795080776,0.47964,117480.0,117470.0,0.21304688]
[1754795081482,0.47964,117480.0,117470.0,0.48204688]
[1754795081682,0.47964,117480.0,117470.0,0.82699306]
[1754795081884,0.47964,117480.0,117470.0,0.48204688]
[1754795082284,0.11884,117480.0,117470.0,0.82699306]
[1754795082582,0.47964,117480.0,117470.0,0.82699306]
[1754795082781,0.11884,117480.0,117470.0,0.48204688]
[1754795082981,0.47964,117480.0,117470.0,0.82699306]
[1754795083685,0.11884,117480.0,117470.0,0.82699306]
[1754795084078,0.47964,117480.0,117470.0,0.82699306]
[1754795085785,0.11884,117480.0,117470.0,0.82699306]
[1754795086382,0.11884,117480.0,117470.0,0.48204688]
[1754795086583,0.11884,117480.0,117470.0,0.82699306]
[1754795087792,0.0103,117480.0,117470.0,0.82699306]
[1754795088984,0.0103,117480.0,117470.0,0.48204688]
[1754795089189,0.0103,117480.0,117470.0,0.82699306]
[1754795089593,0.0103,117480.0,117470.0,0.48204688]
[1754795089791,0.0103,117480.0,117470.0,0.82699306]
[1754795090494,0.0011,117480.0,117470.0,0.82699306]
[1754795091583,0.0011,117480.0,117470.0,0.48204688]
[1754795091786,0.0011,117480.0,117470.0,0.82699306]
[1754795091992,0.0011,117480.0,117470.0,0.55799306]
[1754795092992,0.0011,117480.0,117470.0,0.91879306]
[1754795093295,0.0011,117480.0,117470.0,0.99441154]
[1754795093493,0.0003,117490.0,117480.0,0.1957596]
[1754795093690,0.0053,117500.0,117490.0,0.1957524]
[1754795093893,0.005,117500.0,117490.0,0.90169858]
[1754795094093,0.005,117500.0,117490.0,0.97731706]
[1754795094592,0.3611,117510.0,117490.0,0.97731706]
[1754795094786,0.0002,117520.0,117510.0,0.11065]
[1754795094987,0.45765,117530.0,117520.0,0.1957306]
[1754795095198,0.45745,117530.0,117520.0,1.35931678]
[1754795095394,0.38604,117530.0,117520.0,1.35931678]
[1754795095594,0.47854,117530.0,117520.0,1.35931678]
[1754795095994,0.47854,117530.0,117520.0,1.42864246]
[1754795096190,0.47854,117530.0,117520.0,1.08369628]
[1754795096992,0.3658,117530.0,117520.0,1.08369628]
[1754795097190,0.48354,117530.0,117520.0,1.08369628]
[1754795098397,0.82848618,117530.0,117520.0,1.08369628]
[1754795098703,0.48354,117530.0,117520.0,1.08369628]
[1754795098911,0.82848618,117530.0,117520.0,1.08369628]
[1754795099096,0.48354,117530.0,117520.0,1.08369628]
[1754795099603,0.005,117530.0,117520.0,1.42864246]
[1754795100305,0.3658,117530.0,117520.0,0.61020246]
[1754795100502,0.3658,117530.0,117520.0,1.42764246]
[1754795102300,0.82848618,117530.0,117520.0,1.08269628]
[1754795102904,0.48054,117530.0,117520.0,1.08269628]
[1754795103104,0.82748618,117530.0,117520.0,0.26525628]
[1754795103304,0.82748618,117530.0,117520.0,1.08201628]
[1754795103803,0.48254,117530.0,117520.0,1.08201628]
[1754795104113,0.82748618,117530.0,117520.0,1.08201628]
[1754795104899,0.82748618,117530.0,117520.0,1.07495628]
[1754795105207,0.48254,117530.0,117520.0,1.07495628]
[1754795105513,0.82748618,117530.0,117520.0,1.07495628]
[1754795105705,0.48254,117530.0,117520.0,1.08201628]
[1754795106006,0.3648,117530.0,117520.0,1.42696246]
[1754795106406,0.004,117530.0,117520.0,1.42696246]
[1754795106615,0.004,117530.0,117520.0,1.08201628]
[1754795106814,0.004,117530.0,117520.0,1.42696246]
[1754795108121,0.002,117530.0,117520.0,1.42696246]
[1754795108314,0.003,117530.0,117520.0,1.42696246]
[1754795109114,0.3611,117540.0,117530.0,0.1957934]
[1754795109115,0.0003,117540.0,117530.0,0.1957934]
[1754795109310,0.3611,117550.0,117540.0,0.1957863]
[1754795109516,0.3608,117550.0,117540.0,1.0119863]
[1754795110018,0.40913,117550.0,117540.0,1.0119863]
[1754795110320,0.48255,117550.0,117540.0,1.0119863]
[1754795111013,0.48355,117550.0,117540.0,1.0119863]
[1754795112217,0.46769618,117550.0,117540.0,1.0119863]
[1754795113018,0.82849618,117550.0,117540.0,1.0119863]
[1754795113812,0.82849618,117550.0,117540.0,0.1959863]
[1754795114012,0.82849618,117550.0,117540.0,0.9013063]
[1754795114217,0.82849618,117550.0,117540.0,0.9728263]
[1754795115014,0.82849618,117550.0,117540.0,0.9958163]
[1754795116525,0.82849618,117550.0,117540.0,1.0028763]
[1754795116822,0.82849618,117550.0,117540.0,0.9572663]